fUST/lending_fUST_20240112
["ID","MTS","AMOUNT","RATE_DAILY","PERIOD"]
[311265934,1705003845408,-234.38552857,0.00030958,2]
[311265935,1705003845418,-500.0,0.00030958,2]
[311265936,1705003845427,-500.0,0.00030958,2]
[311265937,1705003845437,-953.35,0.00030958,2]
[311265938,1705003845446,-500.0,0.00030958,2]
[311265939,1705003845455,-10629.28,0.00030958,2]
[311265940,1705003845464,-500.0,0.00030958,2]
[311265941,1705003845472,-500.0,0.00030958,2]
[311265942,1705003845481,-500.0,0.00030958,2]
[311265943,1705003845490,-500.0,0.00030958,2]
[311265944,1705003845499,-1519.58,0.00030958,2]
[311265946,1705003845508,-2721.31,0.00030958,2]
[311265948,1705003845518,-500.0,0.00030958,2]
[311265950,1705003845527,-1067.28,0.00030958,2]
[311265952,1705003845536,-693.43,0.00030958,2]
[311265954,1705003845546,-500.0,0.00030958,2]
[311265957,1705003845555,-5260.58,0.00030958,2]
[311265960,1705003845564,-500.0,0.00030958,2]
[311265963,1705003845574,-500.0,0.00030958,2]
[311265965,1705003845586,-967.94,0.00030958,2]
[311265967,1705003845603,-500.0,0.00030958,2]
[311265969,1705003845619,-500.0,0.00030958,2]
[311265971,1705003845628,-622.45,0.00030958,2]
[311265973,1705003845637,-500.0,0.00030958,2]
[311265975,1705003845646,-500.0,0.00030958,2]
[311265977,1705003845655,-875.76,0.00030958,2]
[311265979,1705003845664,-500.0,0.00030958,2]
[311265981,1705003845673,-1564.87,0.00030958,2]
[311265983,1705003845682,-335.68,0.00030987,2]
[311265985,1705003845691,-335.68,0.00030987,2]
[311265987,1705003845699,-335.68,0.00030987,2]
[311265989,1705003845709,-335.68,0.00030987,2]
[311265991,1705003845718,-335.68,0.00030987,2]
[311265992,1705003845727,-335.68,0.00030987,2]
[311265993,1705003845737,-335.68,0.00030987,2]
[311265997,1705003845827,-335.68,0.00030987,2]
[311265998,1705003845837,-9365.10624288,0.00030992,2]
[311265999,1705003845846,-290.95265916,0.00030992,2]
[311266000,1705003845855,-1285.322819,0.00030992,2]
[311266001,1705003845865,-1285.322819,0.00030992,2]
[311266002,1705003845874,-96855.26836877,0.00031,4]
[311266003,1705003845883,-151.0,0.00031,2]
[311266004,1705003845893,-374.452905,0.00031,2]
[311266005,1705003845902,-374.452905,0.00031,2]
[311266006,1705003845912,-199.881506,0.00031087,2]
[311266007,1705003845921,-318.163318,0.00031087,2]
[311266008,1705003845930,-500.0,0.00031232,2]
[311266009,1705003845939,-550.01,0.00031232,2]
[311266011,1705003845948,-500.0,0.00031232,2]
[311266012,1705003845957,-500.0,0.00031232,2]
[311266013,1705003845966,-500.0,0.00031232,2]
[311266014,1705003845975,-500.0,0.00031232,2]
[311266015,1705003845984,-548.81,0.00031232,2]
[311266016,1705003845994,-500.0,0.00031232,2]
[311266017,1705003846006,-500.0,0.00031232,2]
[311266018,1705003846015,-500.0,0.00031232,2]
[311266019,1705003846024,-953.35,0.00031232,2]
[311266020,1705003846034,-500.0,0.00031232,2]
[311266021,1705003846047,-10629.28,0.00031232,2]
[311266022,1705003846056,-500.0,0.00031232,2]
[311266023,1705003846065,-500.0,0.00031232,2]
[311266024,1705003846074,-500.0,0.00031232,2]
[311266025,1705003846084,-500.0,0.00031232,2]
[311266026,1705003846094,-1519.58,0.00031232,2]
[311266027,1705003846103,-2721.31,0.00031232,2]
[311266028,1705003846112,-500.0,0.00031232,2]
[311266029,1705003846121,-1067.28,0.00031232,2]
[311266030,1705003846130,-693.43,0.00031232,2]
[311266031,1705003846139,-500.0,0.00031232,2]
[311266032,1705003846149,-5260.58,0.00031232,2]
[311266033,1705003846159,-500.0,0.00031232,2]
[311266034,1705003846169,-500.0,0.00031232,2]
[311266035,1705003846179,-967.94,0.00031232,2]
[311266036,1705003846189,-500.0,0.00031232,2]
[311266037,1705003846200,-500.0,0.00031232,2]
[311266038,1705003846211,-622.45,0.00031232,2]
[311266039,1705003846220,-500.0,0.00031232,2]
[311266040,1705003846230,-500.0,0.00031232,2]
[311266041,1705003846239,-875.76,0.00031232,2]
[311266042,1705003846250,-500.0,0.00031232,2]
[311266043,1705003846259,-1564.87,0.00031232,2]
[311266044,1705003846269,-154.09671267,0.0003134,7]
[311266045,1705003846278,-189.52504916,0.00031354,7]
[311266046,1705003846287,-154.09671267,0.00031413,7]
[311266047,1705003846296,-152.31739519,0.0003147,7]
[311266048,1705003846306,-10876.69503492,0.000315,10]
[311266049,1705003846329,-1632.36135739,0.000315,10]
[311266050,1705003846339,-500.0,0.00031506,2]
[311266051,1705003846348,-550.01,0.00031506,2]
[311266052,1705003846358,-577.22955259,0.00031506,2]
[311266053,1705003846368,-500.0,0.00031506,2]
[311266054,1705003846378,-500.0,0.00031506,2]
[311266055,1705003846389,-548.81,0.00031506,2]
[311266056,1705003846400,-500.0,0.00031506,2]
[311266057,1705003846410,-500.0,0.00031506,2]
[311266058,1705003846419,-953.35,0.00031506,2]
[311266059,1705003846429,-500.0,0.00031506,2]
[311266060,1705003846439,-2941.0886129,0.00031506,2]
[311266061,1705003847318,-7688.1913871,0.00031506,2]
[311266062,1705003847329,-500.0,0.00031506,2]
[311266063,1705003847339,-500.0,0.00031506,2]
[311266064,1705003847349,-500.0,0.00031506,2]
[311266065,1705003847359,-1519.58,0.00031506,2]
[311266066,1705003847369,-2721.31,0.00031506,2]
[311266067,1705003847379,-500.0,0.00031506,2]
[311266068,1705003847389,-1067.28,0.00031506,2]
[311266069,1705003847399,-693.43,0.00031506,2]
[311266070,1705003847409,-500.0,0.00031506,2]
[311266071,1705003847419,-5260.58,0.00031506,2]
[311266072,1705003847428,-500.0,0.00031506,2]
[311266073,1705003847439,-500.0,0.00031506,2]
[311266074,1705003847449,-967.94,0.00031506,2]
[311266075,1705003847459,-500.0,0.00031506,2]
[311266076,1705003847470,-622.45,0.00031506,2]
[311266077,1705003847481,-500.0,0.00031506,2]
[311266078,1705003847491,-500.0,0.00031506,2]
[311266079,1705003847503,-875.76,0.00031506,2]
[311266080,1705003847514,-500.0,0.00031506,2]
[311266081,1705003847525,-1564.87,0.00031506,2]
[311266082,1705003847536,-166.92274785,0.00031597,7]
[311266083,1705003847547,-300.0,0.000316,15]
[311266084,1705003847556,-550.01,0.0003178,2]
[311266085,1705003847566,-500.0,0.0003178,2]
[311266086,1705003847576,-500.0,0.0003178,2]
[311266087,1705003847585,-548.81,0.0003178,2]
[311266088,1705003847595,-500.0,0.0003178,2]
[311266089,1705003847604,-500.0,0.0003178,2]
[311266090,1705003847614,-953.35,0.0003178,2]
[311266091,1705003847624,-500.0,0.0003178,2]
[311266092,1705003847634,-10629.28,0.0003178,2]
[311266093,1705003847644,-500.0,0.0003178,2]
[311266094,1705003847654,-500.0,0.0003178,2]
[311266095,1705003847664,-500.0,0.0003178,2]
[311266096,1705003847675,-1519.58,0.0003178,2]
[311266097,1705003847684,-2721.31,0.0003178,2]
[311266098,1705003847693,-500.0,0.0003178,2]
[311266099,1705003847703,-1067.28,0.0003178,2]
[311266100,1705003847712,-693.43,0.0003178,2]
[311266101,1705003847721,-500.0,0.0003178,2]
[311266102,1705003847731,-5260.58,0.0003178,2]
[311266103,1705003847741,-500.0,0.0003178,2]
[311266104,1705003847750,-500.0,0.0003178,2]
[311266105,1705003847759,-967.94,0.0003178,2]
[311266106,1705003847769,-500.0,0.0003178,2]
[311266107,1705003847778,-622.45,0.0003178,2]
[311266108,1705003847788,-500.0,0.0003178,2]
[311266109,1705003847797,-500.0,0.0003178,2]
[311266110,1705003847807,-875.76,0.0003178,2]
[311266111,1705003847816,-500.0,0.0003178,2]
[311266112,1705003847826,-1564.87,0.0003178,2]
[311266113,1705003847835,-1078.27055315,0.00031785,2]
[311266114,1705003847845,-151.113335,0.00031881,2]
[311266115,1705003847854,-250.67888917,0.00031881,2]
[311266116,1705003847864,-13765.17205231,0.00031898,2]
[311266117,1705003847874,-1285.322819,0.00031898,2]
[311266118,1705003847883,-1285.322819,0.00031898,2]
[311266119,1705003847892,-1500.0,0.000319,2]
[311266120,1705003847902,-1000.0,0.00031968,2]
[311266121,1705003847911,-202.24024676,0.00031997,4]
[311266122,1705003847920,-335.68,0.00031999,2]
[311266123,1705003847930,-335.68,0.00031999,2]
[311266124,1705003847940,-622.36093,0.00031999,2]
[311266125,1705003847950,-492.25211291,0.00031999,4]
[311266126,1705003847959,-444.57897788,0.00031999,4]
[311266127,1705003847968,-500.0,0.00031999,4]
[311266128,1705003848060,-500.0,0.00031999,4]
[311266129,1705003848071,-500.0,0.00031999,4]
[311266130,1705003848081,-500.0,0.00031999,4]
[311266131,1705003848091,-500.0,0.00031999,4]
[311266132,1705003848102,-499.74229477,0.00031999,4]
[311266133,1705003848114,-372.05997034,0.00031999,4]
[311266134,1705003848126,-111653.74283096,0.00032,15]
[311266135,1705003848197,-88569.96121234,0.00032,15]
[311266136,1705003848372,-155.1178896,0.00013242,2]
[311266137,1705003848382,-308.47798105,0.00013242,2]
[311266138,1705003848391,-111.10626853,0.00032,15]
[311266139,1705003848421,230.1585526,0.00012255,2]
[311266140,1705003848438,-375.1053871,0.00030136,2]
[311266141,1705003848451,-103.19758407,0.00030136,2]
[311266142,1705003848460,-2914.20241593,0.00032,15]
[311266143,1705003848514,-245.79711146,0.00030134,4]
[311266144,1705003848524,-563.54009735,0.00030135,4]
[311266145,1705003848533,-127.25495419,0.00030135,4]
[311266146,1705003848583,155.1178896,0.00011921,2]
[311266160,1705004412232,155.10702385,0.0002399,4]
[311266161,1705004430230,155.10702385,0.00021592,4]
[311266162,1705004450229,155.11478494,0.00021587,4]
[311266163,1705004470230,155.11478494,0.00021585,4]
[311266164,1705004490239,155.11478494,0.00021584,4]
[311266167,1705004563646,280.0,0.00023137,7]
[311266564,1705005039380,-301.352632,0.00017771,2]
[311266566,1705005039389,-155.10391963,0.00017771,2]
[311266568,1705005039400,-313.03128997,0.00017771,2]
[311266570,1705005039409,-204.41331979,0.00017772,2]
[311266572,1705005039418,-451.81472846,0.00017772,2]
[311266574,1705005039427,-155.10391963,0.00017772,2]
[311266576,1705005039437,-213.95710734,0.00017772,2]
[311266578,1705005039447,-155.10391963,0.00017773,2]
[311266580,1705005039455,-155.10391963,0.00017773,2]
[311266582,1705005039464,-2708.97417906,0.00017773,2]
[311266584,1705005039474,-19663.58309656,0.00017773,2]
[311266586,1705005039484,-155.10391963,0.00017774,2]
[311266587,1705005039493,-560.56224867,0.00017774,2]
[311266588,1705005039502,-594.07215949,0.00017774,2]
[311266589,1705005039510,-319.29682652,0.00017774,2]
[311266590,1705005039520,-29162.44674976,0.00017774,2]
[311266591,1705005039529,-155.10391963,0.00017775,2]
[311266592,1705005039538,-155.10391963,0.00017775,2]
[311266593,1705005039547,-191.04671629,0.00017775,2]
[311266594,1705005039556,-7945.04739538,0.00017775,2]
[311266595,1705005039565,-7988.52269899,0.00017775,2]
[311266596,1705005039574,-686.6489252,0.00017776,2]
[311266597,1705005039583,-678.90210458,0.00017776,2]
[311266598,1705005039632,-20836.46606025,0.00017776,2]
[311266600,1705005039650,-1291.19265067,0.00017777,2]
[311266602,1705005039662,-2698.75957629,0.00017777,2]
[311266604,1705005039671,-1587.53319979,0.00017777,2]
[311266606,1705005039681,-328.9312618,0.00017777,2]
[311266608,1705005039690,-521.18657264,0.00017777,2]
[311266610,1705005039699,-155.10391963,0.00017777,3]
[311266612,1705005039709,-860.94215638,0.00017778,2]
[311266614,1705005039719,-160.71702813,0.00017778,2]
[311266616,1705005039728,-615.66230742,0.00017778,2]
[311266618,1705005039738,-198.86702102,0.00017778,2]
[311266621,1705005039751,-272.00985266,0.00017778,2]
[311266622,1705005039761,-213.00235315,0.00017778,2]
[311266624,1705005039771,-183.62101404,0.00017779,2]
[311266625,1705005039780,-246.10686283,0.000178,2]
[311266627,1705005039790,-4789.41827786,0.00017874,2]
[311266629,1705005039799,-261.8211746,0.00017875,2]
[311266631,1705005039809,-156.66039464,0.00017875,2]
[311266633,1705005039818,-1679.06081875,0.00017875,2]
[311266635,1705005039828,-1989.87267074,0.00017875,2]
[311266637,1705005039837,-270787.85398816,0.00017875,2]
[311266639,1705005039847,-872.72571525,0.00017876,2]
[311266641,1705005039856,-81065.86768714,0.00017876,2]
[311266643,1705005039866,-36895.86463632,0.00017876,2]
[311266644,1705005039875,-20865.20196494,0.00017876,2]
[311266645,1705005039884,-1220.46777881,0.00017877,2]
[311266647,1705005039893,-1030.79768525,0.00017877,2]
[311266649,1705005039903,-13694.49776337,0.00017877,2]
[311266650,1705005039912,-469.71701685,0.00017883,2]
[311266651,1705005039921,-2070.70229933,0.00017887,2]
[311266652,1705005039930,-922.144481,0.00017895,2]
[311266653,1705005039939,-10503.19627673,0.00017898,2]
[311266655,1705005039948,-155.18321527,0.00018889,2]
[311266656,1705005039957,-520.61604034,0.00018889,2]
[311266658,1705005039967,-1578.97802722,0.00019,2]
[311266659,1705005039976,-2358.79578463,0.00019008,2]
[311266660,1705005039985,-443.08272584,0.0001912,2]
[311266661,1705005039995,-260.869305,0.0001912,2]
[311266662,1705005040004,-156.85895617,0.0001912,2]
[311266663,1705005040013,-4349.3302169,0.00019125,2]
[311266664,1705005040022,-1112.22182837,0.000195,2]
[311266665,1705005040031,-1764.954426,0.00019763,2]
[311266666,1705005040041,-24900.0,0.00019763,2]
[311266667,1705005040051,-677.0708176,0.0002,2]
[311266668,1705005040060,-266.37190097,0.0002,2]
[311266669,1705005040070,-569.37401545,0.0002,2]
[311266670,1705005040079,-155.11478494,0.0002,2]
[311266671,1705005040088,-155.11478494,0.0002,2]
[311266672,1705005040097,-315.48561899,0.0002,2]
[311266673,1705005040107,-853.72221584,0.0002,2]
[311266674,1705005040116,-1195.27282006,0.0002,2]
[311266675,1705005040126,-314.30408612,0.0002,2]
[311266676,1705005040135,-184.54495661,0.0002,2]
[311266677,1705005040144,-4321.40443,0.0002,2]
[311266678,1705005040154,-4321.40443,0.0002,2]
[311266679,1705005040163,-4321.40443,0.0002,2]
[311266680,1705005040172,-4321.40443,0.0002,2]
[311266682,1705005040181,-4321.40443,0.0002,2]
[311266683,1705005040190,-478.51187948,0.00021583,2]
[311266684,1705005040200,-165.41976585,0.00021584,2]
[311266685,1705005040209,-344.73296744,0.00021584,2]
[311266686,1705005040218,-156.20158753,0.00021584,2]
[311266687,1705005040227,-989.9133338,0.00021584,2]
[311266689,1705005040237,-177.67923454,0.0002189,2]
[311266691,1705005040246,-166.666666,0.00021918,2]
[311266693,1705005040255,-296.02443686,0.00022,2]
[311266694,1705005040264,-2076.82617599,0.00022,2]
[311266695,1705005040273,-166.666666,0.00022431,2]
[311266696,1705005040282,-166.666666,0.00022944,2]
[311266697,1705005040293,-9923.17263833,0.00023,2]
[311266699,1705005040302,-2093.45221107,0.00023,2]
[311266701,1705005040311,-200.0,0.00023137,2]
[311266702,1705005040321,-546.87419273,0.00023137,2]
[311266703,1705005040329,-1822.05331204,0.00023137,2]
[311266704,1705005040339,-2079.89647566,0.00023137,2]
[311266705,1705005040348,-155.11478494,0.00023137,2]
[311266706,1705005040359,-283561.35337882,0.00023137,2]
[311266707,1705005040368,-155.11478494,0.00023137,2]
[311266708,1705005040377,-166.666666,0.00023456,2]
[311266709,1705005040386,-166.666666,0.00023969,2]
[311266710,1705005040395,-614.12133667,0.00024,2]
[311266711,1705005040405,-4005.39956635,0.00024,2]
[311266713,1705005040414,-166.666666,0.00024482,2]
[311266715,1705005040423,-151.0,0.00024498,2]
[311266717,1705005040432,-687.75702701,0.000247,2]
[311266719,1705005040442,-155.10702385,0.00025,2]
[311266721,1705005040453,-4711.91259146,0.00025,2]
[311266722,1705005040462,-309.81411154,0.00025,2]
[311266723,1705005040471,-677.62834989,0.00025,2]
[311266724,1705005040480,-156.59772865,0.00025417,2]
[311266725,1705005040489,-165.481671,0.00025439,2]
[311266726,1705005040498,-151.0,0.00025861,2]
[311266727,1705005040507,-276000.0,0.0002593,2]
[311266728,1705005040517,-525.99300196,0.00026,2]
[311266729,1705005040526,-178.37571644,0.00026029,2]
[311266730,1705005040537,-181.80703992,0.00026271,2]
[311266731,1705005040546,-622.93349641,0.00026717,2]
[311266732,1705005040555,-1063.79895805,0.0002679,2]
[311266733,1705005040565,-3083.76102233,0.0002679,2]
[311266734,1705005040577,-264.53886499,0.0002679,2]
[311266735,1705005040587,-185.06062567,0.00026794,2]
[311266736,1705005040596,-922.144481,0.00026842,2]
[311266737,1705005040605,-249.4328017,0.00026883,2]
[311266738,1705005040614,-226.89312883,0.00026883,2]
[311266739,1705005040624,-177.67923454,0.0002689,2]
[311266740,1705005040633,-155.08631331,0.00026898,2]
[311266741,1705005040642,-155.11478494,0.00027,7]
[311266742,1705005040653,-460.6542226,0.00027,2]
[311266743,1705005040662,-151.0,0.00027223,2]
[311266744,1705005040671,-526.10879761,0.00027264,2]
[311266745,1705005040681,-757.03758915,0.00027364,5]
[311266746,1705005040690,-523.44705876,0.00027367,2]
[311266747,1705005040699,-323.71326909,0.00027397,2]
[311266748,1705005040709,-721.70066033,0.00027397,2]
[311266749,1705005040718,-177.62762777,0.000274,5]
[311266750,1705005040727,-237.60910002,0.00028,2]
[311266751,1705005040736,-177.62762777,0.00028033,5]
[311266752,1705005040746,-620.14667482,0.00028053,2]
[311266753,1705005040755,-183.62101403,0.00028285,4]
[311266754,1705005040764,-14954.66470894,0.00028552,3]
[311266755,1705005040773,-3587.61707607,0.00028552,3]
[311266756,1705005040783,-2103.65476527,0.00028552,3]
[311266757,1705005040793,-151.0,0.00028585,2]
[311266758,1705005040802,-155.1178896,0.00029,2]
[311266759,1705005040812,-3025.449916,0.00029,2]
[311266760,1705005040821,-155.0,0.00029,2]
[311266761,1705005040830,-152.31739519,0.00029056,2]
[311266762,1705005040840,-9100.04106185,0.0002915,4]
[311266763,1705005040849,-152.31739519,0.00029153,2]
[311266764,1705005040859,-154.09671267,0.00029258,2]
[311266765,1705005040868,-49610.06269275,0.000293,5]
[311266766,1705005040877,-620.00036673,0.0002937,2]
[311266767,1705005040887,-620.00733374,0.00029455,2]
[311266768,1705005040896,-159.08166,0.00029606,2]
[311266769,1705005040905,-199.881507,0.00029606,2]
[311266770,1705005040914,-245.946937,0.00029606,2]
[311266771,1705005040924,-178.733525,0.00029606,2]
[311266772,1705005040933,-920.155087,0.00029606,2]
[311266773,1705005040942,-651.899884,0.00029606,2]
[311266774,1705005040951,-164.552346,0.00029606,2]
[311266775,1705005040962,-254.23001474,0.00029701,3]
[311266776,1705005040972,-155.11478494,0.00029788,2]
[311266777,1705005040981,-844.06986039,0.000298,2]
[311266778,1705005040990,-154.09671267,0.00029811,2]
[311266779,1705005040999,-181.80703992,0.000299,2]
[311266780,1705005041008,-154.09671267,0.00029907,2]
[311266781,1705005041017,-151.0,0.00029948,2]
[311266782,1705005041026,-245.946937,0.00029977,2]
[311266783,1705005041036,-920.155087,0.00029977,2]
[311266784,1705005041045,-651.899884,0.00029977,2]
[311266785,1705005041053,-639.80669723,0.0003,4]
[311266787,1705005041063,-10528.61647802,0.0003,4]
[311266788,1705005041071,-2151.8403773,0.0003,4]
[311266789,1705005041081,-6975.26133049,0.0003,4]
[311266790,1705005041090,-815.96446693,0.0003,2]
[311266791,1705005041100,-55552.1602185,0.0003,15]
[311266792,1705005041108,-163.55638359,0.0003,5]
[311266793,1705005041118,-244.50330111,0.0003,7]
[311266794,1705005041126,-18742.68961404,0.0003,4]
[311266795,1705005041135,-686.8051383,0.0003,4]
[311266796,1705005041145,-463.46661998,0.0003,4]
[311266797,1705005041154,-1200.0,0.0003,4]
[311266798,1705005041163,-1212.94601541,0.0003,2]
[311266799,1705005041173,-152.0,0.0003,2]
[311266800,1705005041182,-177.62,0.00030036,5]
[311266801,1705005041191,-38379.93475574,0.00030036,3]
[311266802,1705005041200,-178.733525,0.000301,2]
[311266803,1705005041209,-23880.57508182,0.00030104,4]
[311266804,1705005041218,-152.31739519,0.00030112,7]
[311266805,1705005041228,-260.40399609,0.00030134,4]
[311266806,1705005041237,-884.19966009,0.00030134,4]
[311266807,1705005041246,-1747.70061852,0.00030134,4]
[311266808,1705005041256,-295.11666302,0.00030135,4]
[311266809,1705005041264,-199.4847221,0.00030135,4]
[311266810,1705005041274,-525.11649111,0.00030135,4]
[311266811,1705005041283,-6602.15861025,0.00030135,4]
[311266812,1705005041295,-200.61953262,0.00030136,2]
[311266813,1705005041304,-500.0,0.00030136,2]
[311266814,1705005041314,-500.0,0.00030136,2]
[311266815,1705005041323,-500.0,0.00030136,2]
[311266816,1705005041332,-500.0,0.00030136,2]
[311266817,1705005041342,-560.66390144,0.00030136,2]
[311266818,1705005041351,-500.9535878,0.00030136,2]
[311266819,1705005041360,-500.0,0.00030136,2]
[311266820,1705005041370,-500.0,0.00030136,2]
[311266821,1705005041380,-502.26759104,0.00030136,2]
[311266822,1705005041390,-594.76805938,0.00030136,2]
[311266823,1705005041400,-500.0,0.00030136,2]
[311266824,1705005041410,-500.0,0.00030136,2]
[311266825,1705005041420,-500.0,0.00030136,2]
[311266826,1705005041430,-500.0,0.00030136,2]
[311266827,1705005041440,-500.0,0.00030136,2]
[311266828,1705005041450,-500.0,0.00030136,2]
[311266829,1705005041461,-500.0,0.00030136,2]
[311266830,1705005041471,-500.0,0.00030136,2]
[311266831,1705005041481,-501.67385778,0.00030136,2]
[311266832,1705005041491,-504.99644365,0.00030136,30]
[311266833,1705005041500,-500.0,0.00030136,2]
[311266834,1705005041510,-509.94278174,0.00030136,2]
[311266835,1705005041519,-500.0,0.00030136,2]
[311266836,1705005041528,-500.0,0.00030136,2]
[311266837,1705005041540,-150.1941832,0.00030136,2]
[311266838,1705005041552,-500.0,0.00030136,2]
[311266839,1705005041561,-522.97859531,0.00030136,2]
[311266840,1705005041570,-500.0,0.00030136,2]
[311266841,1705005041580,-436.7156274,0.00030136,2]
[311266842,1705005041589,-500.0,0.00030136,2]
[311266843,1705005041597,-500.0,0.00030136,2]
[311266844,1705005041607,-500.0,0.00030136,2]
[311266845,1705005041616,-308.75957109,0.00030136,2]
[311266846,1705005041625,-500.0,0.00030136,2]
[311266847,1705005041634,-277.54315261,0.00030136,2]
[311266848,1705005041643,-500.0,0.00030136,2]
[311266849,1705005041652,-500.0,0.00030136,2]
[311266850,1705005041661,-500.0,0.00030136,2]
[311266851,1705005041670,-500.0,0.00030136,2]
[311266852,1705005041679,-500.0,0.00030136,2]
[311266853,1705005041688,-500.0,0.00030136,2]
[311266854,1705005041698,-500.0,0.00030136,2]
[311266855,1705005041707,-500.0,0.00030136,2]
[311266856,1705005041716,-500.0,0.00030136,2]
[311266857,1705005041725,-555.35,0.00030136,2]
[311266858,1705005041734,-500.0,0.00030136,2]
[311266859,1705005041743,-421.07384829,0.00030136,2]
[311266860,1705005041752,-500.0,0.00030136,2]
[311266861,1705005041761,-500.0,0.00030136,2]
[311266862,1705005041770,-500.0,0.00030136,2]
[311266863,1705005041780,-500.0,0.00030136,2]
[311266864,1705005041792,-501.48834983,0.00030136,2]
[311266865,1705005041801,-500.0,0.00030136,2]
[311266866,1705005041811,-500.0,0.00030136,2]
[311266867,1705005041927,-500.0,0.00030136,2]
[311266868,1705005041937,-500.0,0.00030136,2]
[311266869,1705005041946,-500.0,0.00030136,2]
[311266870,1705005041956,-500.0,0.00030136,2]
[311266871,1705005041969,-500.0,0.00030136,2]
[311266872,1705005041989,-500.0,0.00030136,2]
[311266873,1705005041998,-500.0,0.00030136,2]
[311266874,1705005042007,-500.0,0.00030136,2]
[311266875,1705005042016,-500.0,0.00030136,2]
[311266876,1705005042024,-500.0,0.00030136,2]
[311266877,1705005042033,-500.0,0.00030136,2]
[311266878,1705005042044,-500.0,0.00030136,2]
[311266879,1705005042053,-500.0,0.00030136,2]
[311266880,1705005042062,-500.0,0.00030136,2]
[311266881,1705005042071,-500.0,0.00030136,2]
[311266882,1705005042079,-500.0,0.00030136,2]
[311266883,1705005042088,-500.0,0.00030136,2]
[311266884,1705005042097,-500.0,0.00030136,2]
[311266885,1705005042106,-500.20971053,0.00030136,2]
[311266886,1705005042114,-500.0,0.00030136,2]
[311266887,1705005042123,-500.0,0.00030136,2]
[311266888,1705005042135,-226.98517404,0.00030136,2]
[311266889,1705005042154,-500.0,0.00030136,2]
[311266890,1705005042163,-500.0,0.00030136,2]
[311266891,1705005042172,-1000.0,0.00030136,2]
[311266892,1705005042180,-500.0,0.00030136,2]
[311266893,1705005042189,-508.57057146,0.00030136,2]
[311266894,1705005042198,-500.0,0.00030136,2]
[311266895,1705005042207,-500.0,0.00030136,2]
[311266896,1705005042217,-500.0,0.00030136,2]
[311266897,1705005042227,-500.0,0.00030136,2]
[311266898,1705005042236,-500.0,0.00030136,2]
[311266899,1705005042246,-500.0,0.00030136,2]
[311266900,1705005042256,-503.08297517,0.00030136,2]
[311266901,1705005042266,-500.0,0.00030136,2]
[311266902,1705005042275,-500.0,0.00030136,2]
[311266903,1705005042284,-500.0,0.00030136,2]
[311266904,1705005042295,-501.07299609,0.00030136,2]
[311266905,1705005042304,-637.11585041,0.00030136,2]
[311266906,1705005042313,-500.0,0.00030136,2]
[311266907,1705005042322,-500.0,0.00030136,2]
[311266908,1705005042331,-500.0,0.00030136,2]
[311266909,1705005042341,-500.0,0.00030136,2]
[311266910,1705005042350,-213.00909035,0.00030136,2]
[311266911,1705005042359,-500.0,0.00030136,2]
[311266912,1705005042368,-500.0,0.00030136,2]
[311266913,1705005042377,-500.0,0.00030136,2]
[311266914,1705005042386,-500.0,0.00030136,2]
[311266915,1705005042396,-500.0,0.00030136,2]
[311266916,1705005042405,-500.0,0.00030136,2]
[311266917,1705005042414,-500.0,0.00030136,2]
[311266918,1705005042424,-500.0,0.00030136,2]
[311266919,1705005042433,-500.0,0.00030136,2]
[311266920,1705005042441,-500.0,0.00030136,2]
[311266921,1705005042452,-500.0,0.00030136,2]
[311266922,1705005042461,-451.67328584,0.00030136,2]